[Event "ESP-chT Div I 2018"]
[Site "Linares"]
[Date "2018.08.06"]
[Round "1"]
[White "Granero Roca, Antonio"]
[Black "Moreno Ruiz, Javier"]
[Result "1/2-1/2"]
[ECO "A06"]
[WhiteElo "2383"]
[BlackElo "2450"]
[Annotator "ChessBase"]
[PlyCount "101"]
[EventDate "2018.08.06"]
[EventType "team-tourn"]
[EventCountry "ESP"]
[SourceTitle "playchess.com"]
[Source "ChessBase"]
[SourceQuality "1"]
[TimeControl "40/5400+30:1800+30"]

1. Nf3 {[%emt 0:04:23]} d5 {[%emt 0:00:06]} 2. g3 {[%emt 0:00:47]} Nf6 {[%emt 0:00:11]} 3. Bg2 {[%emt 0:00:14]} e6 {[%emt 0:01:17]} 4. c4 {[%emt 0:00:29]} d4 {[%emt 0:00:38]} 5. d3 {[%emt 0:01:07]} Nc6 {[%emt 0:01:32]} 6. O-O {[%emt 0:00:18]} Be7 {[%emt 0:00:09]} 7. Na3 {[%emt 0:00:39]} O-O {[%emt 0:00:34]} 8. Bg5 {[%emt 0:01:07]} h6 {[%emt 0:03:40]} 9. Bxf6 {[%emt 0:02:27]} Bxf6 {[%emt 0:00:06]} 10. Nc2 {[%emt 0:00:32]} a5 {[%emt 0:00:22]} 11. b3 {[%emt 0:00:48]} Rb8 {[%emt 0:01:42]} 12. Nd2 {[%emt 0:04:37]} Bd7 {[%emt 0:00:42]} 13. Rb1 {[%emt 0:02:00]} e5 {[%emt 0:03:21]} 14. a3 {[%emt 0:04:52]} Be7 {[%emt 0:00:56]} 15. b4 {[%emt 0:01:08]} b6 {[%emt 0:06:11]} 16. e3 {[%emt 0:06:39]} dxe3 {[%emt 0:08:29]} 17. fxe3 {[%emt 0:01:02]} axb4 {[%emt 0:03:33]} 18. axb4 {[%emt 0:00:53]} f5 {[%emt 0:02:00]} 19. Bd5+ {[%emt 0:03:40]} Kh8 {[%emt 0:00:58]} 20. Qe2 {[%emt 0:06:52]} Bd6 {[%emt 0:04:41]} 21. d4 {[%emt 0:05:24]} Ne7 {[%emt 0:15:30]} 22. Bg2 {[%emt 0:01:16]} c5 {[%emt 0:01:30]} 23. dxc5 {[%emt 0:05:17]} bxc5 {[%emt 0:00:18]} 24. b5 {[%emt 0:00:05]} e4 {[%emt 0:01:58]} 25. Nb3 {[%emt 0:00:40]} Qc7 {[%emt 0:01:17]} 26. Rbd1 {[%emt 0:01:05]} Be6 {[%emt 0:01:10]} 27. Ra1 {[%emt 0:09:13]} Ng6 {[%emt 0:05:36]} 28. Ra6 {[%emt 0:03:36]} Ne5 {[%emt 0:00:16]} 29. Nd2 {[%emt 0:00:35]} Ra8 {[%emt 0:12:06]} 30. Rfa1 {[%emt 0:00:30]} Rxa6 {[%emt 0:00:22]} 31. Rxa6 {[%emt 0:00:29]} Bc8 {[%emt 0:00:46]} 32. Ra4 {[%emt 0:01:55]} Nd7 {[%emt 0:03:03]} 33. Na1 {[%emt 0:01:39]} Nb6 {[%emt 0:00:42]} 34. Ra2 {[%emt 0:00:35]} Be6 {[%emt 0:00:28]} 35. Nab3 {[%emt 0:01:00]} Qf7 {[%emt 0:03:35]} 36. Bf1 {[%emt 0:00:36]} Ra8 {[%emt 0:02:03]} 37. Rxa8+ {[%emt 0:01:16]} Nxa8 {[%emt 0:00:02]} 38. Qd1 {[%emt 0:00:15]} Nb6 {[%emt 0:03:43]} 39. Nxe4 {[%emt 0:05:26]} Be7 {[%emt 0:12:10]} 40. Nexc5 {[%emt 0:10:13]} Bxc4 {[%emt 0:00:13]} 41. Qc2 {[%emt 0:31:11]} Bxf1 {[%emt 0:31:56]} 42. Kxf1 {[%emt 0:00:08]} Qd5 {[%emt 0:00:02]} 43. Kg1 {[%emt 0:02:10]} Nc4 {[%emt 0:00:35]} 44. Qd3 {[%emt 0:00:41]} Qxd3 {[%emt 0:00:45]} 45. Nxd3 {[%emt 0:00:06]} Bd8 {[%emt 0:00:36]} 46. Kf2 {[%emt 0:00:28]} Bb6 {[%emt 0:00:20]} 47. Nd4 {[%emt 0:00:15]} Nd6 {[%emt 0:00:19]} 48. Ne5 {[%emt 0:02:12]} Bxd4 {[%emt 0:00:29]} 49. exd4 {[%emt 0:00:08]} Nxb5 {[%emt 0:00:01]} 50. Ke3 {[%emt 0:00:07]} g5 {[%emt 0:00:41]} 51. h4 {[%emt 0:01:24]} 1/2-1/2

[Event "ESP-chT Div I 2018"]
[Site "Linares"]
[Date "2018.08.06"]
[Round "1"]
[White "Martin Duque, Jesus"]
[Black "Cano Sanchez, Josue"]
[Result "1-0"]
[ECO "B12"]
[WhiteElo "2378"]
[BlackElo "2312"]
[Annotator "NA"]
[PlyCount "120"]
[EventDate "2018.08.06"]
[EventType "team-tourn"]
[EventCountry "ESP"]
[SourceTitle "playchess.com"]
[Source "ChessBase"]
[SourceQuality "1"]
[TimeControl "40/5400+30:1800+30"]

1. e4 {[%emt 0:00:00]} c6 {[%emt 0:04:23]} 2. d4 {[%emt 0:00:00]} d5 {[%emt 0:00:06]} 3. e5 {[%emt 0:00:00]} Bf5 {[%emt 0:00:09]} 4. Nd2 {[%emt 0:00:00]} e6 {[%emt 0:00:32]} 5. Nb3 {[%emt 0:00:00]} Nd7 {[%emt 0:00:48]} 6. Nf3 {[%emt 0:00:00]} Ne7 {[%emt 0:04:37]} 7. Be2 {[%emt 0:00:02]} Bg6 {[%emt 0:01:48]} 8. O-O {[%emt 0:00:16]} Nf5 {[%emt 0:00:28]} 9. c3 {[%emt 0:00:25]} h5 {[%emt 0:01:03]} 10. Bf4 {[%emt 0:04:37]} Be7 {[%emt 0:02:46]} 11. Ne1 {[%emt 0:02:40]} h4 {[%emt 0:30:39]} 12. h3 {[%emt 0:03:04]} Rc8 {[%emt 0:11:19]} 13. Nd3 {[%emt 0:02:28]} O-O {[%emt 0:02:15]} 14. Rc1 {[%emt 0:02:59]} c5 {[%emt 0:00:26]} 15. Nbxc5 {[%emt 0:02:56]} Nxc5 {[%emt 0:01:07]} 16. dxc5 {[%emt 0:01:16]} Bxc5 {[%emt 0:00:12]} 17. Nxc5 {[%emt 0:02:24]} Rxc5 {[%emt 0:00:09]} 18. b4 {[%emt 0:04:41]} Rc6 {[%emt 0:01:41]} 19. Bb5 {[%emt 0:05:17]} Rc7 {[%emt 0:02:50]} 20. Bd3 {[%emt 0:01:33]} Qd7 {[%emt 0:06:08]} 21. a4 {[%emt 0:09:10]} Rfc8 {[%emt 0:00:26]} 22. Bb5 {[%emt 0:01:07]} Qe7 {[%emt 0:03:12]} 23. Qd2 {[%emt 0:10:41]} d4 {[%emt 0:01:13]} 24. cxd4 {[%emt 0:03:34]} Rxc1 {[%emt 0:00:09]} 25. Rxc1 {[%emt 0:00:02]} Rxc1+ {[%emt 0:00:10]} 26. Qxc1 {[%emt 0:00:02]} Qxb4 {[%emt 0:00:47]} 27. d5 {[%emt 0:09:25]} exd5 {[%emt 0:00:34]} 28. Bd2 {[%emt 0:00:39]} Qe7 {[%emt 0:09:42]} 29. Qc8+ {[%emt 0:04:29]} Kh7 {[%emt 0:00:08]} 30. Qb8 {[%emt 0:00:06]} a6 {[%emt 0:00:20]} 31. Bf1 {[%emt 0:03:26]} Nd4 {[%emt 0:01:20]} 32. Qd6 {[%emt 0:02:26]} Qxd6 33. exd6 {[%emt 0:00:06]} Nc6 {[%emt 0:06:26]} 34. f3 {[%emt 0:02:44]} f6 {[%emt 0:01:38]} 35. Kf2 {[%emt 0:04:03]} Kg8 {[%emt 0:00:22]} 36. Be3 {[%emt 0:03:31]} Kf7 {[%emt 0:00:17]} 37. Bb6 {[%emt 0:00:34]} Ke6 {[%emt 0:00:14]} 38. Bc7 {[%emt 0:00:05]} Ne5 {[%emt 0:01:45]} 39. Ke3 {[%emt 0:00:44]} Nc6 {[%emt 0:04:28]} 40. a5 {[%emt 0:00:18]} Bf5 {[%emt 0:00:24]} 41. Be2 {[%emt 0:31:00]} g5 {[%emt 0:30:41]} 42. Bd1 {[%emt 0:00:43]} d4+ {[%emt 0:00:39]} 43. Kd2 {[%emt 0:00:12]} Kd5 {[%emt 0:00:04]} 44. Ba4 {[%emt 0:01:56]} Ne5 {[%emt 0:00:26]} 45. Bb3+ {[%emt 0:00:58]} Kc5 {[%emt 0:00:10]} 46. Bd8 {[%emt 0:00:42]} Kxd6 {[%emt 0:03:19]} 47. Bxf6 {[%emt 0:00:02]} Be6 {[%emt 0:00:15]} 48. Bxe6 {[%emt 0:01:48]} Kxe6 {[%emt 0:00:07]} 49. Bxg5 {[%emt 0:00:07]} Nc4+ {[%emt 0:01:03]} 50. Kd3 {[%emt 0:00:14]} Kd5 {[%emt 0:00:12]} 51. Bxh4 {[%emt 0:04:51]} Nxa5 {[%emt 0:00:06]} 52. Bf6 {[%emt 0:01:21]} Nb3 {[%emt 0:00:17]} 53. h4 {[%emt 0:00:05]} Nc5+ {[%emt 0:00:05]} 54. Kc2 {[%emt 0:01:02]} Ne6 {[%emt 0:00:41]} 55. h5 {[%emt 0:00:43]} d3+ {[%emt 0:00:39]} 56. Kd2 {[%emt 0:00:01]} Nf4 {[%emt 0:00:09]} 57. h6 {[%emt 0:00:06]} Ke6 {[%emt 0:01:00]} 58. h7 {[%emt 0:00:05]} Ng6 {[%emt 0:00:10]} 59. h8=Q {[%emt 0:00:06]} Nxh8 {[%emt 0:00:08]} 60. Bxh8 {[%emt 0:00:01]} Kd5 1-0

[Event "ESP-chT Div I 2018"]
[Site "Linares"]
[Date "2018.08.06"]
[Round "1"]
[White "Bressac, Stephane"]
[Black "Bergez, Luc"]
[Result "0-1"]
[ECO "B15"]
[WhiteElo "2341"]
[BlackElo "2327"]
[Annotator "NA"]
[PlyCount "120"]
[EventDate "2018.08.06"]
[EventType "team-tourn"]
[EventCountry "ESP"]
[SourceTitle "playchess.com"]
[Source "ChessBase"]
[SourceQuality "1"]
[TimeControl "40/5400+30:1800+30"]

1. e4 {[%emt 0:00:00]} c6 {[%emt 0:00:00]} 2. d4 {[%emt 0:00:00]} d5 {[%emt 0:00:00]} 3. Nd2 {[%emt 0:00:00]} dxe4 {[%emt 0:01:43]} 4. Nxe4 {[%emt 0:00:00]} Nf6 {[%emt 0:01:19]} 5. Nxf6+ {[%emt 0:00:12]} exf6 {[%emt 0:00:09]} 6. c3 {[%emt 0:00:30]} Bd6 {[%emt 0:00:20]} 7. Bd3 {[%emt 0:00:06]} O-O {[%emt 0:00:23]} 8. Qc2 {[%emt 0:00:02]} Re8+ {[%emt 0:00:12]} 9. Ne2 {[%emt 0:00:05]} h6 {[%emt 0:00:47]} 10. O-O {[%emt 0:06:41]} Qc7 {[%emt 0:00:23]} 11. Ng3 {[%emt 0:03:04]} Nd7 {[%emt 0:02:16]} 12. f4 {[%emt 0:05:13]} c5 {[%emt 0:07:35]} 13. d5 {[%emt 0:06:29]} c4 {[%emt 0:01:31]} 14. Bh7+ {[%emt 0:02:35]} Kh8 {[%emt 0:00:50]} 15. Kh1 {[%emt 0:06:02]} Nc5 {[%emt 0:21:29]} 16. Ne4 {[%emt 0:03:36]} f5 {[%emt 0:09:52]} 17. Nxd6 {[%emt 0:07:11]} Qxd6 {[%emt 0:00:08]} 18. Bxf5 {[%emt 0:00:08]} Qxd5 {[%emt 0:00:28]} 19. Bxc8 {[%emt 0:00:17]} Raxc8 {[%emt 0:00:08]} 20. f5 {[%emt 0:00:10]} Re4 {[%emt 0:06:19]} 21. Qd1 {[%emt 0:25:12]} Qxd1 {[%emt 0:04:27]} 22. Rxd1 {[%emt 0:00:04]} Nd3 {[%emt 0:00:58]} 23. Rf1 {[%emt 0:03:53]} Re2 {[%emt 0:05:39]} 24. Rb1 {[%emt 0:02:48]} Rce8 {[%emt 0:04:29]} 25. Kg1 {[%emt 0:13:49]} Rc2 {[%emt 0:02:26]} 26. Bf4 {[%emt 0:02:04]} Ree2 {[%emt 0:00:36]} 27. Bb8 {[%emt 0:01:17]} Rxg2+ {[%emt 0:00:22]} 28. Kh1 {[%emt 0:00:02]} Rge2 {[%emt 0:02:26]} 29. b3 {[%emt 0:01:36]} Nf2+ {[%emt 0:11:59]} 30. Kg1 {[%emt 0:00:14]} Nh3+ {[%emt 0:00:06]} 31. Kh1 {[%emt 0:00:05]} Nf2+ {[%emt 0:00:25]} 32. Kg1 {[%emt 0:00:03]} Ne4 {[%emt 0:00:06]} 33. Rbe1 {[%emt 0:06:21]} Nxc3 {[%emt 0:04:43]} 34. bxc4 {[%emt 0:00:08]} Rxa2 {[%emt 0:00:36]} 35. Rxe2 {[%emt 0:01:02]} Nxe2+ {[%emt 0:00:13]} 36. Kf2 {[%emt 0:00:01]} Nd4+ {[%emt 0:02:16]} 37. Ke3 {[%emt 0:00:23]} Nc6 {[%emt 0:00:09]} 38. Bg3 {[%emt 0:00:28]} a5 {[%emt 0:03:24]} 39. Rb1 {[%emt 0:00:23]} Ra4 {[%emt 0:04:35]} 40. Rxb7 {[%emt 0:00:35]} Rxc4 {[%emt 0:00:10]} 41. Rxf7 {[%emt 0:30:37]} Kg8 {[%emt 0:30:01]} 42. Rc7 {[%emt 0:00:26]} a4 {[%emt 0:00:33]} 43. Rc8+ {[%emt 0:00:01]} Kf7 {[%emt 0:00:07]} 44. Bd6 {[%emt 0:00:20]} Kf6 {[%emt 0:00:37]} 45. Rf8+ {[%emt 0:00:22]} Kg5 {[%emt 0:00:03]} 46. Rf7 {[%emt 0:00:49]} a3 {[%emt 0:00:43]} 47. Rxg7+ {[%emt 0:01:52]} Kxf5 {[%emt 0:00:45]} 48. Rg1 {[%emt 0:01:59]} Re4+ {[%emt 0:02:26]} 49. Kf2 {[%emt 0:00:43]} a2 {[%emt 0:00:16]} 50. Bf8 {[%emt 0:00:55]} Ra4 {[%emt 0:00:38]} 51. Bg7 {[%emt 0:01:06]} Na5 {[%emt 0:00:50]} 52. h4 {[%emt 0:03:11]} Nb3 {[%emt 0:00:46]} 53. h5 {[%emt 0:00:08]} Ra6 {[%emt 0:00:28]} 54. Rg3 {[%emt 0:00:55]} a1=Q {[%emt 0:00:16]} 55. Bxa1 {[%emt 0:00:23]} Nxa1 {[%emt 0:00:06]} 56. Rc3 {[%emt 0:00:05]} Kg4 {[%emt 0:00:11]} 57. Rc5 {[%emt 0:00:49]} Rf6+ {[%emt 0:00:28]} 58. Kg2 {[%emt 0:00:04]} Nb3 {[%emt 0:00:22]} 59. Rd5 {[%emt 0:00:10]} Rf5 {[%emt 0:00:18]} 60. Rd6 {[%emt 0:00:17]} Kxh5 {[%emt 0:00:14]} 0-1

[Event "ESP-chT Div I 2018"]
[Site "Linares"]
[Date "2018.08.06"]
[Round "1"]
[White "Gutierrez Olivares, Daniel"]
[Black "Garcia Castany Musellas, Gal La"]
[Result "1-0"]
[ECO "A14"]
[WhiteElo "2297"]
[BlackElo "2203"]
[Annotator "NA"]
[PlyCount "65"]
[EventDate "2018.08.06"]
[EventType "team-tourn"]
[EventCountry "ESP"]
[SourceTitle "playchess.com"]
[Source "ChessBase"]
[SourceQuality "1"]
[TimeControl "40/5400+30:1800+30"]

1. c4 {[%emt 0:00:00]} e6 2. Nf3 {[%emt 0:00:08]} Nf6 {[%emt 0:00:23]} 3. g3 {[%emt 0:00:16]} d5 {[%emt 0:01:18]} 4. Bg2 {[%emt 0:00:36]} Be7 {[%emt 0:02:48]} 5. O-O {[%emt 0:02:08]} dxc4 {[%emt 0:05:31]} 6. Qa4+ {[%emt 0:00:59]} c6 {[%emt 0:05:42]} 7. Qxc4 {[%emt 0:00:09]} b5 {[%emt 0:00:48]} 8. Qc2 {[%emt 0:01:04]} Bb7 {[%emt 0:00:14]} 9. d3 {[%emt 0:02:34]} O-O {[%emt 0:03:36]} 10. e4 {[%emt 0:03:37]} c5 {[%emt 0:06:58]} 11. Rd1 {[%emt 0:01:50]} Nc6 {[%emt 0:01:42]} 12. a4 {[%emt 0:03:53]} a6 {[%emt 0:06:45]} 13. Be3 {[%emt 0:15:44]} Nb4 {[%emt 0:19:39]} 14. Qe2 {[%emt 0:02:31]} Qb6 {[%emt 0:10:35]} 15. Nc3 {[%emt 0:01:56]} Ng4 {[%emt 0:02:18]} 16. Bf4 {[%emt 0:01:53]} e5 {[%emt 0:07:12]} 17. Nxe5 {[%emt 0:01:52]} Nxe5 {[%emt 0:05:11]} 18. Bxe5 {[%emt 0:00:22]} Bf6 {[%emt 0:01:07]} 19. Bxf6 {[%emt 0:03:51]} Qxf6 {[%emt 0:01:09]} 20. axb5 {[%emt 0:01:01]} axb5 {[%emt 0:00:59]} 21. Rxa8 {[%emt 0:01:44]} Bxa8 {[%emt 0:02:32]} 22. Nxb5 {[%emt 0:00:45]} Rb8 {[%emt 0:03:22]} 23. Na3 {[%emt 0:15:36]} Nc6 {[%emt 0:07:44]} 24. Nc4 {[%emt 0:02:29]} Ne5 {[%emt 0:01:34]} 25. Nxe5 {[%emt 0:01:26]} Qxe5 {[%emt 0:00:02]} 26. Rd2 {[%emt 0:00:32]} Bc6 {[%emt 0:01:11]} 27. h3 {[%emt 0:01:18]} Qd4 {[%emt 0:02:14]} 28. Rc2 {[%emt 0:02:43]} Bb5 {[%emt 0:00:43]} 29. Bf1 {[%emt 0:00:47]} Ba6 {[%emt 0:00:38]} 30. Qe3 {[%emt 0:03:47]} Qd8 {[%emt 0:00:05]} 31. Rxc5 {[%emt 0:03:27]} Rxb2 {[%emt 0:00:12]} 32. Rd5 {[%emt 0:00:37]} Qc7 {[%emt 0:01:13]} 33. Qc1 {[%emt 0:00:58]} 1-0

[Event "ESP-chT Div I 2018"]
[Site "Linares"]
[Date "2018.08.06"]
[Round "1"]
[White "Rivas Garcia, Victor"]
[Black "Ortega Hermida, Daniel"]
[Result "1/2-1/2"]
[ECO "C50"]
[WhiteElo "2217"]
[BlackElo "2334"]
[Annotator "NA"]
[PlyCount "98"]
[EventDate "2018.08.06"]
[EventType "team-tourn"]
[EventCountry "ESP"]
[SourceTitle "playchess.com"]
[Source "ChessBase"]
[SourceQuality "1"]
[TimeControl "40/5400+30:1800+30"]

1. e4 {[%emt 0:00:00]} e5 {[%emt 0:00:06]} 2. Nf3 {[%emt 0:00:31]} Nc6 {[%emt 0:00:22]} 3. Bc4 {[%emt 0:00:36]} Nf6 {[%emt 0:00:22]} 4. d3 {[%emt 0:00:08]} Bc5 {[%emt 0:00:17]} 5. c3 {[%emt 0:00:15]} O-O {[%emt 0:00:42]} 6. Bb3 {[%emt 0:01:25]} h6 {[%emt 0:03:29]} 7. h3 {[%emt 0:01:05]} a5 {[%emt 0:01:04]} 8. O-O {[%emt 0:04:07]} d6 {[%emt 0:01:44]} 9. Nbd2 {[%emt 0:05:22]} Be6 {[%emt 0:04:18]} 10. Re1 {[%emt 0:02:41]} Qd7 {[%emt 0:11:24]} 11. Nf1 {[%emt 0:03:22]} Bxb3 {[%emt 0:06:43]} 12. Qxb3 {[%emt 0:01:55]} Rfe8 {[%emt 0:02:33]} 13. Ng3 {[%emt 0:02:44]} d5 {[%emt 0:05:30]} 14. Nf5 {[%emt 0:11:54]} Bf8 {[%emt 0:03:52]} 15. Bd2 {[%emt 0:04:41]} b6 {[%emt 0:03:28]} 16. Rad1 {[%emt 0:02:06]} Rad8 {[%emt 0:01:33]} 17. Bc1 {[%emt 0:04:27]} dxe4 {[%emt 0:10:56]} 18. dxe4 {[%emt 0:00:23]} Qe6 {[%emt 0:00:41]} 19. Qxe6 {[%emt 0:02:11]} Rxe6 {[%emt 0:00:34]} 20. Ng3 {[%emt 0:06:37]} Ree8 {[%emt 0:03:57]} 21. Kf1 {[%emt 0:01:24]} Nd7 {[%emt 0:01:59]} 22. Rd5 {[%emt 0:04:15]} Nf6 {[%emt 0:01:54]} 23. Rdd1 {[%emt 0:00:48]} Nd7 {[%emt 0:02:39]} 24. Rd5 {[%emt 0:00:59]} Nf6 {[%emt 0:01:49]} 25. Rdd1 {[%emt 0:00:52]} Rxd1 {[%emt 0:07:02]} 26. Rxd1 {[%emt 0:00:06]} Nb8 {[%emt 0:00:08]} 27. Ke2 {[%emt 0:02:40]} Nbd7 {[%emt 0:00:19]} 28. Ne1 {[%emt 0:01:06]} Nc5 {[%emt 0:04:14]} 29. f3 {[%emt 0:00:20]} Ne6 {[%emt 0:02:18]} 30. Nd3 {[%emt 0:01:23]} h5 {[%emt 0:02:54]} 31. Be3 {[%emt 0:06:39]} g6 {[%emt 0:03:13]} 32. Kf2 {[%emt 0:01:22]} Nd7 {[%emt 0:01:05]} 33. Ne1 {[%emt 0:04:31]} Ndc5 {[%emt 0:04:19]} 34. Nd3 {[%emt 0:01:17]} h4 {[%emt 0:00:45]} 35. Ne2 {[%emt 0:01:37]} Rd8 {[%emt 0:01:07]} 36. Nec1 {[%emt 0:01:49]} f5 {[%emt 0:01:56]} 37. Ke2 {[%emt 0:02:00]} Nd7 {[%emt 0:03:30]} 38. Nf2 {[%emt 0:03:01]} Bd6 {[%emt 0:00:36]} 39. b3 {[%emt 0:01:25]} Kf7 {[%emt 0:00:30]} 40. Ncd3 {[%emt 0:00:31]} Ke7 {[%emt 0:01:54]} 41. Nb2 {[%emt 0:30:31]} b5 {[%emt 0:31:02]} 42. Rd5 {[%emt 0:03:24]} c6 {[%emt 0:00:16]} 43. Rd1 {[%emt 0:00:12]} Nf6 {[%emt 0:01:02]} 44. Nbd3 {[%emt 0:01:23]} c5 {[%emt 0:00:29]} 45. Nb2 {[%emt 0:02:57]} Ra8 {[%emt 0:00:53]} 46. Kf1 {[%emt 0:01:49]} Rb8 {[%emt 0:00:52]} 47. Ke2 {[%emt 0:00:16]} Ra8 {[%emt 0:00:27]} 48. Kf1 {[%emt 0:00:07]} Rb8 {[%emt 0:00:19]} 49. Ke2 Ke8 1/2-1/2

[Event "ESP-chT Div I 2018"]
[Site "Linares"]
[Date "2018.08.06"]
[Round "1"]
[White "Gonzalez Merino, Alberto"]
[Black "Almagro Llamas, Pablo"]
[Result "0-1"]
[ECO "A17"]
[WhiteElo "2199"]
[BlackElo "2442"]
[Annotator "NA"]
[PlyCount "52"]
[EventDate "2018.08.06"]
[EventType "team-tourn"]
[EventCountry "ESP"]
[SourceTitle "playchess.com"]
[Source "ChessBase"]
[SourceQuality "1"]
[TimeControl "40/5400+30:1800+30"]

1. Nf3 {[%emt 0:00:00]} Nf6 {[%emt 0:00:00]} 2. c4 {[%emt 0:00:00]} e6 {[%emt 0:00:15]} 3. Nc3 {[%emt 0:00:00]} Bb4 {[%emt 0:01:10]} 4. Qc2 {[%emt 0:00:32]} O-O {[%emt 0:02:04]} 5. g3 {[%emt 0:00:25]} d5 {[%emt 0:07:19]} 6. cxd5 {[%emt 0:09:07]} exd5 {[%emt 0:01:57]} 7. a3 {[%emt 0:00:21]} Bxc3 {[%emt 0:10:24]} 8. dxc3 {[%emt 0:20:12]} Re8 {[%emt 0:03:18]} 9. h3 {[%emt 0:01:34]} b6 {[%emt 0:09:13]} 10. Be3 {[%emt 0:01:35]} Ba6 {[%emt 0:10:52]} 11. Bg2 {[%emt 0:27:36]} Nbd7 {[%emt 0:14:30]} 12. O-O {[%emt 0:07:39]} c5 {[%emt 0:04:27]} 13. Rad1 {[%emt 0:04:07]} Rxe3 {[%emt 0:10:53]} 14. fxe3 {[%emt 0:00:30]} Qc7 {[%emt 0:02:38]} 15. g4 {[%emt 0:17:45]} Re8 {[%emt 0:00:34]} 16. Ng5 {[%emt 0:01:41]} h6 {[%emt 0:03:58]} 17. Nxf7 {[%emt 0:02:51]} Kxf7 {[%emt 0:01:45]} 18. Bxd5+ {[%emt 0:00:05]} Ke7 {[%emt 0:03:27]} 19. Rf4 {[%emt 0:01:53]} Qe5 {[%emt 0:05:48]} 20. Be4 {[%emt 0:00:59]} g5 {[%emt 0:02:26]} 21. Rxd7+ {[%emt 0:00:04]} Kxd7 {[%emt 0:02:17]} 22. Qa4+ {[%emt 0:00:43]} Ke7 {[%emt 0:00:50]} 23. Rf5 {[%emt 0:01:02]} Qxe4 {[%emt 0:00:38]} 24. Qxa6 Qxe3+ {[%emt 0:00:26]} 25. Kh2 {[%emt 0:00:32]} Kf7 {[%emt 0:00:32]} 26. Qc4+ {[%emt 0:01:12]} Kg7 {[%emt 0:00:27]} 0-1

[Event "ESP-chT Div I 2018"]
[Site "Linares"]
[Date "2018.08.06"]
[Round "1"]
[White "Vazquez Torres, Adrian"]
[Black "Garcia Perez, Javier"]
[Result "1/2-1/2"]
[ECO "C11"]
[WhiteElo "2174"]
[BlackElo "2090"]
[Annotator "NA"]
[PlyCount "69"]
[EventDate "2018.08.06"]
[EventType "team-tourn"]
[EventCountry "ESP"]
[SourceTitle "playchess.com"]
[Source "ChessBase"]
[SourceQuality "1"]
[TimeControl "40/5400+30:1800+30"]

1. e4 {[%emt 0:00:00]} e6 {[%emt 0:00:00]} 2. Nf3 {[%emt 0:00:00]} d5 {[%emt 0:00:41]} 3. Nc3 {[%emt 0:00:30]} Nf6 {[%emt 0:04:22]} 4. e5 {[%emt 0:00:04]} Nfd7 {[%emt 0:00:05]} 5. d4 {[%emt 0:00:06]} c5 {[%emt 0:02:34]} 6. dxc5 {[%emt 0:00:30]} Nc6 {[%emt 0:04:32]} 7. Bf4 {[%emt 0:00:00]} Nxc5 {[%emt 0:11:30]} 8. h4 {[%emt 0:00:00]} h6 {[%emt 0:12:10]} 9. a3 {[%emt 0:05:09]} Be7 {[%emt 0:11:15]} 10. b4 {[%emt 0:06:56]} Ne4 11. Nxe4 {[%emt 0:00:30]} dxe4 {[%emt 0:00:14]} 12. Qxd8+ {[%emt 0:00:11]} Bxd8 {[%emt 0:00:03]} 13. Nd2 {[%emt 0:00:21]} Bc7 {[%emt 0:00:03]} 14. Bb5 {[%emt 0:11:02]} Bd7 {[%emt 0:00:33]} 15. Nxe4 {[%emt 0:00:53]} Bxe5 {[%emt 0:09:17]} 16. Bxe5 {[%emt 0:00:09]} Nxe5 {[%emt 0:00:04]} 17. Bxd7+ {[%emt 0:00:40]} Kxd7 {[%emt 0:00:08]} 18. f4 {[%emt 0:09:21]} Nc4 {[%emt 0:02:28]} 19. Rh3 {[%emt 0:00:14]} Rhd8 {[%emt 0:13:08]} 20. Rc3 {[%emt 0:13:58]} b5 {[%emt 0:12:23]} 21. a4 {[%emt 0:00:12]} a6 {[%emt 0:02:07]} 22. a5 {[%emt 0:05:38]} Kc6 {[%emt 0:04:11]} 23. Rd1 {[%emt 0:04:38]} Rxd1+ {[%emt 0:00:50]} 24. Kxd1 {[%emt 0:00:05]} Rd8+ {[%emt 0:00:01]} 25. Ke2 {[%emt 0:00:16]} Rd4 {[%emt 0:00:11]} 26. Nc5 {[%emt 0:13:49]} Rxf4 {[%emt 0:02:25]} 27. g3 {[%emt 0:00:07]} Rd4 {[%emt 0:00:50]} 28. Nxa6 {[%emt 0:00:08]} Rd2+ {[%emt 0:00:45]} 29. Kf3 {[%emt 0:01:10]} Rd1 {[%emt 0:02:01]} 30. Nc5 {[%emt 0:01:15]} Rb1 {[%emt 0:00:28]} 31. Nb3 {[%emt 0:08:39]} e5 {[%emt 0:00:12]} 32. g4 {[%emt 0:01:43]} g6 {[%emt 0:02:18]} 33. g5 {[%emt 0:02:29]} hxg5 {[%emt 0:02:54]} 34. hxg5 Rh1 35. Nd2 1/2-1/2

[Event "ESP-chT Div I 2018"]
[Site "Linares"]
[Date "2018.08.06"]
[Round "1"]
[White "Prado Acebo, Ines"]
[Black "Rodrigo Yanguas, Maria"]
[Result "1-0"]
[ECO "A91"]
[WhiteElo "2084"]
[BlackElo "2062"]
[Annotator "NA"]
[PlyCount "77"]
[EventDate "2018.08.06"]
[EventType "team-tourn"]
[EventCountry "ESP"]
[SourceTitle "playchess.com"]
[Source "ChessBase"]
[SourceQuality "1"]
[TimeControl "40/5400+30:1800+30"]

1. d4 {[%emt 0:00:00]} e6 {[%emt 0:00:00]} 2. c4 {[%emt 0:00:00]} f5 {[%emt 0:00:00]} 3. g3 {[%emt 0:00:37]} Nf6 {[%emt 0:00:18]} 4. Bg2 {[%emt 0:00:13]} Be7 {[%emt 0:00:16]} 5. Nh3 {[%emt 0:02:49]} O-O {[%emt 0:00:58]} 6. O-O {[%emt 0:02:17]} d6 {[%emt 0:03:29]} 7. Qb3 {[%emt 0:03:27]} Nc6 {[%emt 0:08:03]} 8. Rd1 {[%emt 0:05:53]} Qe8 {[%emt 0:01:40]} 9. d5 {[%emt 0:07:17]} Nd8 {[%emt 0:08:04]} 10. Nc3 {[%emt 0:10:38]} e5 {[%emt 0:03:01]} 11. Nb5 {[%emt 0:00:44]} Qd7 {[%emt 0:09:18]} 12. c5 {[%emt 0:04:04]} Kh8 {[%emt 0:06:45]} 13. c6 {[%emt 0:13:06]} bxc6 {[%emt 0:03:18]} 14. dxc6 {[%emt 0:00:10]} Nxc6 {[%emt 0:01:32]} 15. Ng5 {[%emt 0:04:07]} Rb8 {[%emt 0:10:34]} 16. Bxc6 {[%emt 0:14:44]} Qxc6 {[%emt 0:00:31]} 17. Nf7+ {[%emt 0:01:00]} Rxf7 {[%emt 0:01:08]} 18. Qxf7 {[%emt 0:00:14]} Bb7 {[%emt 0:09:33]} 19. f3 {[%emt 0:06:19]} Qc5+ {[%emt 0:03:05]} 20. Kf1 {[%emt 0:08:07]} Qxb5 {[%emt 0:02:12]} 21. Qxe7 {[%emt 0:00:28]} Bxf3 {[%emt 0:01:02]} 22. Re1 {[%emt 0:00:42]} Ng4 {[%emt 0:06:59]} 23. Qxc7 {[%emt 0:03:59]} d5 {[%emt 0:09:31]} 24. a4 {[%emt 0:02:06]} Nxh2+ {[%emt 0:02:02]} 25. Kg1 {[%emt 0:00:33]} Qe8 {[%emt 0:00:13]} 26. Kxh2 {[%emt 0:02:15]} Qh5+ {[%emt 0:00:32]} 27. Kg1 {[%emt 0:00:05]} Qh1+ {[%emt 0:01:02]} 28. Kf2 {[%emt 0:00:02]} Qg2+ {[%emt 0:00:24]} 29. Ke3 {[%emt 0:00:06]} d4+ {[%emt 0:03:17]} 30. Kd2 {[%emt 0:00:08]} Re8 {[%emt 0:00:41]} 31. Ra3 {[%emt 0:02:05]} e4 {[%emt 0:00:28]} 32. Qd7 {[%emt 0:03:24]} e3+ {[%emt 0:00:15]} 33. Kc2 {[%emt 0:01:38]} Bc6 {[%emt 0:05:11]} 34. Qxd4 {[%emt 0:00:50]} Qxg3 {[%emt 0:00:01]} 35. Rd1 {[%emt 0:00:35]} Be4+ {[%emt 0:00:07]} 36. Kb3 {[%emt 0:00:14]} Qc7 {[%emt 0:00:27]} 37. Ka2 {[%emt 0:00:22]} Rb8 {[%emt 0:01:24]} 38. Bxe3 {[%emt 0:00:19]} h6 {[%emt 0:00:45]} 39. Bxh6 1-0